fUSD/lending_fUSD_20240329
["ID","MTS","AMOUNT","RATE_DAILY","PERIOD"]
[321000322,1711737050137,-500.0,0.00052054,120]
[321000323,1711737050148,-688.19817,0.00052054,60]
[321000324,1711737050158,-152.69955499,0.00052054,120]
[321000325,1711737050168,-500.0,0.00052054,120]
[321000326,1711737050177,-500.0,0.00052054,120]
[321000327,1711737050187,-259.17458836,0.00052054,120]
[321000328,1711737050196,-151.0,0.00052054,120]
[321000329,1711737050205,-500.0,0.00052054,120]
[321000330,1711737050215,-542.25,0.00052054,120]
[321000331,1711737050225,-500.0,0.00052054,120]
[321000332,1711737050234,-500.0,0.00052054,120]
[321000333,1711737050244,-500.0,0.00052054,120]
[321000334,1711737050254,-500.0,0.00052054,120]
[321000335,1711737050263,-500.0,0.00052054,120]
[321000336,1711737050274,-153.69885,0.00052054,120]
[321000337,1711737050283,-500.0,0.00052054,120]
[321000338,1711737050295,-984.73315759,0.00052054,120]
[321000339,1711737050305,-615.95349176,0.00052054,120]
[321000340,1711737050315,-500.0,0.00052054,120]
[321000341,1711737050325,-500.0,0.00052054,120]
[321000342,1711737050335,-500.0,0.00052054,120]
[321000343,1711737050345,-500.0,0.00052054,120]
[321000344,1711737050356,-525.94567512,0.00052054,120]
[321000345,1711737050367,-213.511496,0.00052054,120]
[321000346,1711737050377,-196.41,0.00052054,120]
[321000347,1711737050387,-500.0,0.00052054,120]
[321000348,1711737050398,-213.511496,0.00052054,120]
[321000349,1711737050409,-500.0,0.00052054,120]
[321000350,1711737050420,-500.0,0.00052054,120]
[321000351,1711737050430,-500.0,0.00052054,120]
[321000352,1711737050441,-500.0,0.00052054,120]
[321000353,1711737050450,-500.0,0.00052054,120]
[321000354,1711737050460,-500.0,0.00052054,120]
[321000355,1711737050470,-500.0,0.00052054,120]
[321000356,1711737050479,-363.61830094,0.00052054,120]
[321000357,1711737050489,-500.0,0.00052054,120]
[321000358,1711737050499,-500.0,0.00052054,120]
[321000359,1711737050508,-500.0,0.00052054,120]
[321000360,1711737050517,-500.0,0.00052054,120]
[321000361,1711737050527,-156.927235,0.00052054,45]
[321000362,1711737050536,-500.0,0.00052054,120]
[321000363,1711737050546,-499.99558732,0.00052054,120]
[321000364,1711737050555,-156.927235,0.00052054,45]
[321000365,1711737050565,-500.0,0.00052054,120]
[321000366,1711737050574,-1912.39,0.00052054,120]
[321000367,1711737050584,-500.0,0.00052054,120]
[321000368,1711737050593,-500.0,0.00052054,120]
[321000369,1711737050603,-500.0,0.00052054,120]
[321000370,1711737050613,-550.28,0.00052054,120]
[321000371,1711737050622,-500.0,0.00052054,120]
[321000372,1711737050632,-500.0,0.00052054,120]
[321000373,1711737050642,-500.0,0.00052054,120]
[321000374,1711737050652,-523.45559541,0.00052054,120]
[321000375,1711737050662,-500.0,0.00052054,120]
[321000376,1711737050672,-559.01,0.00052054,120]
[321000377,1711737050682,-500.0,0.00052054,120]
[321000378,1711737050691,-151.0,0.00052054,120]
[321000379,1711737050701,-500.0,0.00052054,120]
[321000380,1711737050710,-500.0,0.00052054,120]
[321000381,1711737050720,-500.0,0.00052054,120]
[321000382,1711737050730,-500.0,0.00052054,120]
[321000383,1711737050740,-500.0,0.00052054,120]
[321000384,1711737050749,-506.46907587,0.00052054,120]
[321000385,1711737050759,-500.0,0.00052054,120]
[321000386,1711737050769,-500.0,0.00052054,120]
[321000387,1711737050778,-500.0,0.00052054,120]
[321000388,1711737050788,-500.0,0.00052054,120]
[321000389,1711737050797,-151.0,0.00052054,120]
[321000390,1711737050807,-500.0,0.00052054,120]
[321000391,1711737050817,-500.0,0.00052054,120]
[321000392,1711737050827,-513.44793086,0.00052054,120]
[321000393,1711737050837,-500.0,0.00052054,120]
[321000394,1711737050847,-500.0,0.00052054,120]
[321000395,1711737050856,-500.0,0.00052054,120]
[321000396,1711737050866,-570.54,0.00052054,120]
[321000397,1711737050876,-500.0,0.00052054,120]
[321000398,1711737050886,-372.80335052,0.00052054,120]
[321000399,1711737050897,-500.0,0.00052054,120]
[321000400,1711737050906,-500.0,0.00052054,120]
[321000401,1711737050916,-743.21,0.00052054,120]
[321000402,1711737050926,-500.0,0.00052054,120]
[321000403,1711737050936,-2055.37,0.00052054,120]
[321000404,1711737050945,-500.0,0.00052054,120]
[321000405,1711737050956,-500.0,0.00052054,120]
[321000406,1711737050966,-500.0,0.00052054,120]
[321000407,1711737050976,-500.0,0.00052054,120]
[321000408,1711737050986,-500.0,0.00052054,120]
[321000409,1711737050995,-598.67,0.00052054,120]
[321000410,1711737051005,-500.0,0.00052054,120]
[321000411,1711737051014,-500.0,0.00052054,120]
[321000412,1711737051024,-500.0,0.00052054,120]
[321000413,1711737051034,-500.0,0.00052054,120]
[321000414,1711737051044,-500.0,0.00052054,120]
[321000415,1711737051054,-556.25,0.00052054,120]
[321000416,1711737051063,-500.0,0.00052054,120]
[321000417,1711737051073,-500.0,0.00052054,120]
[321000418,1711737051083,-687.12,0.00052054,120]
[321000419,1711737051093,-500.0,0.00052054,120]
[321000420,1711737051298,-500.0,0.00052054,120]
[321000421,1711737051308,-500.0,0.00052054,120]
[321000422,1711737051317,-500.0,0.00052054,120]
[321000423,1711737051328,-560.27498569,0.00052054,120]
[321000424,1711737051338,-500.0,0.00052054,120]
[321000425,1711737051347,-500.0,0.00052054,120]
[321000426,1711737051357,-500.0,0.00052054,120]
[321000427,1711737051366,-1122.66,0.00052054,120]
[321000428,1711737051376,-578.9,0.00052054,120]
[321000429,1711737051385,-500.0,0.00052054,120]
[321000430,1711737051395,-500.0,0.00052054,120]
[321000431,1711737051405,-500.0,0.00052054,120]
[321000432,1711737051414,-500.0,0.00052054,120]
[321000433,1711737051424,-4077.76,0.00052054,120]
[321000434,1711737051434,-1267.61,0.00052054,120]
[321000435,1711737051444,-500.0,0.00052054,120]
[321000436,1711737051453,-607.13,0.00052054,120]
[321000437,1711737051463,-500.0,0.00052054,120]
[321000438,1711737051473,-500.0,0.00052054,120]
[321000439,1711737051482,-2524.86,0.00052054,120]
[321000440,1711737051492,-480.598738,0.00052054,120]
[321000441,1711737051501,-1600.97,0.00052054,120]
[321000442,1711737051511,-500.0,0.00052054,120]
[321000443,1711737051520,-500.0,0.00052054,120]
[321000444,1711737051531,-500.0,0.00052054,120]
[321000445,1711737051541,-151.0,0.00052054,120]
[321000446,1711737051550,-500.0,0.00052054,120]
[321000447,1711737051560,-544.16,0.00052054,120]
[321000448,1711737051569,-480.598738,0.00052054,120]
[321000449,1711737051579,-500.0,0.00052054,120]
[321000450,1711737051588,-3196.36,0.00052054,120]
[321000451,1711737051597,-500.0,0.00052054,120]
[321000452,1711737051608,-2733.47,0.00052054,120]
[321000453,1711737051617,-500.0,0.00052054,120]
[321000454,1711737051627,-500.0,0.00052054,120]
[321000455,1711737051636,-500.0,0.00052054,120]
[321000456,1711737051646,-500.0,0.00052054,120]
[321000457,1711737051656,-500.0,0.00052054,120]
[321000458,1711737051665,-500.0,0.00052054,120]
[321000459,1711737051675,-518.62,0.00052054,120]
[321000460,1711737051685,-241.03962126,0.00052054,120]
[321000461,1711737051694,-17456.84,0.00052054,120]
[321000462,1711737051704,-6990.43,0.00052054,120]
[321000463,1711737051714,-500.0,0.00052054,120]
[321000464,1711737051723,-500.0,0.00052054,120]
[321000465,1711737051733,-151.0,0.00052054,120]
[321000466,1711737051743,-1600.34,0.00052054,120]
[321000467,1711737051753,-500.0,0.00052054,120]
[321000468,1711737051767,-906.57,0.00052054,120]
[321000469,1711737051824,-500.0,0.00052054,120]
[321000470,1711737051834,-500.0,0.00052054,15]
[321000471,1711737051844,-500.0,0.00052054,120]
[321000472,1711737051854,-500.0,0.00052054,120]
[321000473,1711737051863,-500.0,0.00052054,120]
[321000474,1711737051872,-500.0,0.00052054,120]
[321000475,1711737051883,-2056.12,0.00052054,120]
[321000476,1711737051893,-500.0,0.00052054,120]
[321000477,1711737051903,-500.0,0.00052054,120]
[321000478,1711737051913,-934.36,0.00052054,120]
[321000479,1711737051922,-500.0,0.00052054,120]
[321000480,1711737051932,-500.0,0.00052054,120]
[321000481,1711737051941,-500.0,0.00052054,120]
[321000482,1711737051952,-500.0,0.00052054,120]
[321000483,1711737051961,-500.0,0.00052054,120]
[321000484,1711737051971,-157.494988,0.00052054,120]
[321000485,1711737051980,-500.0,0.00052054,120]
[321000486,1711737051990,-500.0,0.00052054,120]
[321000487,1711737051999,-500.0,0.00052054,7]
[321000488,1711737052008,-500.0,0.00052054,120]
[321000489,1711737052019,-2217.79,0.00052054,120]
[321000490,1711737052029,-151.0,0.00052054,120]
[321000491,1711737052039,-500.0,0.00052054,120]
[321000492,1711737052050,-500.0,0.00052054,120]
[321000493,1711737052060,-500.0,0.00052054,120]
[321000494,1711737052070,-151.0,0.00052054,120]
[321000495,1711737052081,-500.0,0.00052054,120]
[321000496,1711737052090,-1006.26,0.00052054,120]
[321000497,1711737052100,-500.0,0.00052054,120]
[321000498,1711737052111,-500.0,0.00052054,120]
[321000499,1711737052127,-500.0,0.00052054,120]
[321000500,1711737052140,-1762.19,0.00052054,120]
[321000501,1711737052152,-500.0,0.00052054,120]
[321000502,1711737052161,-500.0,0.00052054,120]
[321000503,1711737052172,-500.0,0.00052054,120]
[321000504,1711737052181,-3064.84,0.00052054,120]
[321000505,1711737052192,-697.03,0.00052054,120]
[321000506,1711737052202,-1009.23,0.00052054,120]
[321000507,1711737052212,-500.0,0.00052054,120]
[321000508,1711737052222,-500.0,0.00052054,120]
[321000509,1711737052231,-500.0,0.00052054,120]
[321000510,1711737052241,-500.0,0.00052054,120]
[321000511,1711737052250,-500.0,0.00052054,120]
[321000512,1711737052260,-500.0,0.00052054,120]
[321000513,1711737052269,-500.0,0.00052054,120]
[321000514,1711737052281,-500.0,0.00052054,120]
[321000515,1711737052293,-500.0,0.00052054,120]
[321000516,1711737052304,-500.0,0.00052054,120]
[321000517,1711737052315,-3249.97,0.00052054,120]
[321000518,1711737052327,-151.0,0.00052054,120]
[321000519,1711737052338,-736.34,0.00052054,120]
[321000520,1711737052348,-1200.24,0.00052054,120]
[321000521,1711737052358,-3593.44,0.00052054,120]
[321000522,1711737052370,-500.0,0.00052054,120]
[321000523,1711737052381,-500.0,0.00052054,120]
[321000524,1711737052391,-500.0,0.00052054,120]
[321000525,1711737052402,-246.58799156,0.00052054,120]
[321000526,1711737052412,-657.08,0.00052054,120]
[321000527,1711737052423,-500.0,0.00052054,120]
[321000528,1711737052433,-1000.0,0.00052054,14]
[321000529,1711737052443,-1513.48,0.00052054,120]
[321000530,1711737052453,-522.92834377,0.00052054,120]
[321000531,1711737052464,-500.0,0.00052054,120]
[321000532,1711737052475,-500.0,0.00052054,120]
[321000533,1711737052485,-3572.23,0.00052054,120]
[321000534,1711737052496,-940.06,0.00052054,120]
[321000535,1711737052506,-896.49,0.00052054,120]
[321000536,1711737052516,-500.0,0.00052054,120]
[321000537,1711737052527,-500.0,0.00052054,120]
[321000538,1711737052539,-585.28,0.00052054,120]
[321000539,1711737052550,-764.95,0.00052054,120]
[321000540,1711737052560,-500.0,0.00052054,120]
[321000541,1711737052570,-421.61858222,0.00052054,120]
[321000542,1711737052580,-522.48,0.00052054,120]
[321000543,1711737052591,-500.0,0.00052054,120]
[321000544,1711737052601,-500.0,0.00052054,120]
[321000545,1711737052612,-621.23,0.00052054,120]
[321000546,1711737052622,-500.0,0.00052054,120]
[321000547,1711737052632,-500.0,0.00052054,120]
[321000548,1711737052644,-500.0,0.00052054,120]
[321000549,1711737052655,-500.0,0.00052054,120]
[321000550,1711737052665,-551.91,0.00052054,120]
[321000551,1711737052675,-500.0,0.00052054,120]
[321000552,1711737052686,-654.47,0.00052054,120]
[321000553,1711737052697,-838.54,0.00052054,120]
[321000554,1711737052708,-500.0,0.00052054,120]
[321000555,1711737052719,-633.86,0.00052054,120]
[321000556,1711737052729,-500.0,0.00052054,120]
[321000557,1711737052739,-500.0,0.00052054,120]
[321000558,1711737052750,-598.4,0.00052054,120]
[321000559,1711737052760,-1405.35,0.00052054,120]
[321000560,1711737052770,-829.62,0.00052054,120]
[321000561,1711737052780,-500.0,0.00052054,120]
[321000562,1711737052789,-2909.98,0.00052054,120]
[321000563,1711737052799,-2533.43,0.00052054,120]
[321000564,1711737052808,-500.0,0.00052054,120]
[321000565,1711737052817,-500.0,0.00052054,120]
[321000566,1711737052827,-500.0,0.00052054,120]
[321000567,1711737052836,-1124.07,0.00052054,120]
[321000568,1711737052847,-2964.95,0.00052054,120]
[321000569,1711737052856,-151.0,0.00052054,120]
[321000570,1711737052866,-151.0,0.00052054,120]
[321000571,1711737052875,-500.0,0.00052054,120]
[321000572,1711737052885,-500.0,0.00052054,120]
[321000573,1711737052896,-2302.92,0.00052054,120]
[321000574,1711737052905,-500.0,0.00052054,120]
[321000575,1711737052914,-500.0,0.00052054,120]
[321000576,1711737052924,-500.0,0.00052054,120]
[321000577,1711737052934,-500.0,0.00052054,120]
[321000578,1711737052944,-748.45,0.00052054,120]
[321000579,1711737052953,-500.0,0.00052054,120]
[321000580,1711737052962,-609.44,0.00052054,120]
[321000581,1711737052972,-500.0,0.00052054,120]
[321000582,1711737052982,-151.0,0.00052054,120]
[321000583,1711737052992,-151.0,0.00052054,120]
[321000584,1711737053002,-500.0,0.00052054,120]
[321000585,1711737053013,-3402.12,0.00052054,120]
[321000586,1711737053022,-500.0,0.00052054,120]
[321000587,1711737053031,-500.0,0.00052054,120]
[321000588,1711737053042,-1827.64,0.00052054,120]
[321000589,1711737053052,-500.0,0.00052054,120]
[321000590,1711737053063,-5459.25,0.00052054,120]
[321000591,1711737053073,-500.0,0.00052054,120]
[321000592,1711737053084,-2248.3,0.00052054,120]
[321000593,1711737053095,-1300.48,0.00052054,120]
[321000594,1711737053106,-880.91,0.00052054,120]
[321000595,1711737053118,-500.0,0.00052054,120]
[321000596,1711737053130,-2990.43,0.00052054,120]
[321000597,1711737053141,-500.0,0.00052054,120]
[321000598,1711737053152,-241.988256,0.00052054,120]
[321000599,1711737053162,-500.0,0.00052054,120]
[321000600,1711737053172,-1654.07,0.00052054,120]
[321000601,1711737053182,-500.0,0.00052054,120]
[321000602,1711737053192,-9060.39,0.00052054,120]
[321000603,1711737053203,-500.0,0.00052054,120]
[321000604,1711737053213,-793.71,0.00052054,120]
[321000605,1711737053223,-862.31,0.00052054,120]
[321000606,1711737053233,-500.0,0.00052054,120]
[321000607,1711737053243,-500.0,0.00052054,120]
[321000608,1711737053254,-685.28,0.00052054,120]
[321000609,1711737053265,-500.0,0.00052054,120]
[321000610,1711737053277,-500.0,0.00052054,120]
[321000611,1711737053289,-1090.08,0.00052054,120]
[321000612,1711737053299,-1378.54,0.00052054,120]
[321000613,1711737053310,-500.0,0.00052054,120]
[321000614,1711737053321,-500.0,0.00052054,120]
[321000615,1711737053332,-500.0,0.00052054,120]
[321000616,1711737053343,-500.0,0.00052054,120]
[321000617,1711737053353,-500.0,0.00052054,120]
[321000618,1711737053364,-1869.33,0.00052054,120]
[321000619,1711737053374,-521.31440295,0.00052054,120]
[321000620,1711737053384,-500.0,0.00052054,120]
[321000621,1711737053396,-500.0,0.00052054,120]
[321000622,1711737053407,-500.0,0.00052054,120]
[321000623,1711737053417,-1541.01,0.00052054,120]
[321000624,1711737053428,-500.0,0.00052054,120]
[321000625,1711737053438,-500.0,0.00052054,120]
[321000626,1711737053450,-500.0,0.00052054,120]
[321000627,1711737053460,-500.0,0.00052054,120]
[321000628,1711737053471,-500.0,0.00052054,120]
[321000629,1711737053481,-500.0,0.00052054,120]
[321000630,1711737053492,-228.01,0.00052054,120]
[321000631,1711737053502,-500.0,0.00052054,120]
[321000632,1711737053513,-960.29,0.00052054,120]
[321000633,1711737053522,-4248.75,0.00052054,120]
[321000634,1711737053532,-500.0,0.00052054,120]
[321000635,1711737053542,-2849.17,0.00052054,120]
[321000636,1711737053552,-500.0,0.00052054,120]
[321000637,1711737053563,-500.0,0.00052054,120]
[321000638,1711737053574,-500.0,0.00052054,120]
[321000639,1711737053584,-500.0,0.00052054,120]
[321000640,1711737053594,-500.0,0.00052054,120]
[321000641,1711737053605,-500.0,0.00052054,80]
[321000642,1711737053616,-670.56,0.00052054,120]
[321000643,1711737053625,-1545.36,0.00052054,120]
[321000644,1711737053635,-500.0,0.00052054,120]
[321000645,1711737053646,-500.0,0.00052054,120]
[321000646,1711737053655,-3007.75,0.00052054,120]
[321000647,1711737053665,-6971.52,0.00052054,120]
[321000648,1711737053676,-3513.77,0.00052054,120]
[321000649,1711737053687,-500.0,0.00052054,120]
[321000650,1711737053698,-500.0,0.00052054,120]
[321000651,1711737053708,-500.0,0.00052054,120]
[321000652,1711737053717,-500.0,0.00052054,120]
[321000653,1711737053727,-500.0,0.00052054,120]
[321000654,1711737053737,-500.0,0.00052054,120]
[321000655,1711737053748,-500.0,0.00052054,120]
[321000656,1711737053760,-500.0,0.00052054,120]
[321000657,1711737053773,-524.08,0.00052054,120]
[321000658,1711737053790,-359.84839,0.00052054,120]
[321000659,1711737053805,-2694.33,0.00052054,120]
[321000660,1711737053815,-2284.84,0.00052054,120]
[321000661,1711737053825,-359.84839,0.00052054,120]
[321000662,1711737053834,-828.29,0.00052054,120]
[321000663,1711737053844,-3729.89,0.00052054,120]
[321000664,1711737053853,-500.0,0.00052054,120]
[321000665,1711737053863,-500.0,0.00052054,120]
[321000666,1711737053872,-500.0,0.00052054,120]
[321000667,1711737053881,-500.0,0.00052054,120]
[321000668,1711737053890,-500.0,0.00052054,120]
[321000669,1711737053900,-500.0,0.00052054,120]
[321000670,1711737053909,-1280.49,0.00052054,120]
[321000671,1711737053918,-500.0,0.00052054,120]
[321000672,1711737053927,-4594.43,0.00052054,120]
[321000673,1711737053936,-3978.82,0.00052054,120]
[321000674,1711737053945,-500.0,0.00052054,120]
[321000675,1711737053954,-838.51,0.00052054,120]
[321000676,1711737053963,-500.0,0.00052054,120]
[321000677,1711737053972,-1496.75,0.00052054,120]
[321000678,1711737053981,-500.0,0.00052054,120]
[321000679,1711737053990,-1204.47,0.00052054,120]
[321000680,1711737053999,-12031.57,0.00052054,120]
[321000681,1711737054008,-500.0,0.00052054,120]
[321000682,1711737054017,-500.0,0.00052054,120]
[321000683,1711737054026,-5135.10847487,0.00052054,120]
[321000684,1711737054548,-3866.95152513,0.00052054,120]
[321000685,1711737054557,-500.0,0.00052054,60]
[321000686,1711737054567,-500.0,0.00052054,120]
[321000687,1711737054575,-500.0,0.00052054,120]
[321000688,1711737054584,-1427.81,0.00052054,120]
[321000689,1711737054594,-151.0,0.00052054,120]
[321000690,1711737054603,-1479.5,0.00052054,120]
[321000691,1711737054612,-500.0,0.00052054,120]
[321000692,1711737054621,-2838.79,0.00052054,120]
[321000693,1711737054638,-500.0,0.00052054,120]
[321000694,1711737054652,-500.0,0.00052054,120]
[321000695,1711737054661,-724.48,0.00052054,120]
[321000696,1711737054671,-500.0,0.00052054,120]
[321000697,1711737054681,-505.99200954,0.00052054,120]
[321000698,1711737054690,-500.0,0.00052054,120]
[321000699,1711737054700,-843.57,0.00052054,120]
[321000700,1711737054710,-538.63,0.00052054,120]
[321000701,1711737054719,-505.57134841,0.00052054,120]
[321000702,1711737054729,-2713.52,0.00052054,120]
[321000703,1711737054739,-571.05,0.00052054,120]
[321000704,1711737054749,-3773.56,0.00052054,120]
[321000705,1711737054759,-503.65642499,0.00052054,120]
[321000706,1711737054768,-500.0,0.00052054,120]
[321000707,1711737054778,-500.0,0.00052054,120]
[321000708,1711737054788,-500.0,0.00052054,120]
[321000709,1711737054797,-151.0,0.00052054,120]
[321000710,1711737054807,-1848.62,0.00052054,120]
[321000711,1711737054817,-503.00089083,0.00052054,120]
[321000712,1711737054826,-500.0,0.00052054,120]
[321000713,1711737054836,-500.0,0.00052054,120]
[321000714,1711737054845,-2871.0,0.00052054,120]
[321000715,1711737054855,-500.0,0.00052054,120]
[321000716,1711737054865,-620.83,0.00052054,120]
[321000717,1711737054874,-711.37,0.00052054,120]
[321000718,1711737054884,-500.0,0.00052054,120]
[321000719,1711737054894,-500.0,0.00052054,120]
[321000720,1711737054903,-506.92,0.00052054,120]
[321000721,1711737054912,-500.0,0.00052054,120]
[321000722,1711737054921,-500.0,0.00052054,120]
[321000723,1711737054931,-500.0,0.00052054,120]
[321000724,1711737054941,-151.0,0.00052054,30]
[321000725,1711737054950,-151.0,0.00052054,30]
[321000726,1711737054960,-500.0,0.00052054,120]
[321000727,1711737054969,-500.0,0.00052054,120]
[321000728,1711737054979,-3607.72,0.00052054,120]
[321000729,1711737054988,-502.51488865,0.00052054,2]
[321000730,1711737054997,-3314.66,0.00052054,120]
[321000731,1711737055007,-500.0,0.00052054,120]
[321000732,1711737055017,-500.0,0.00052054,120]
[321000733,1711737055027,-757.13,0.00052054,120]
[321000734,1711737055037,-4351.02,0.00052054,120]
[321000735,1711737055046,-500.0,0.00052054,120]
[321000736,1711737055055,-500.0,0.00052054,120]
[321000737,1711737055066,-500.0,0.00052054,120]
[321000738,1711737055075,-4188.71,0.00052054,21]
[321000739,1711737055084,-500.0,0.00052054,120]
[321000740,1711737055094,-501.91,0.00052054,120]
[321000741,1711737055103,-500.0,0.00052054,120]
[321000742,1711737055113,-2114.75,0.00052054,120]
[321000743,1711737055123,-500.0,0.00052054,120]
[321000744,1711737055133,-500.0,0.00052054,120]
[321000745,1711737055143,-500.0,0.00052054,120]
[321000746,1711737055154,-500.0,0.00052054,120]
[321000747,1711737055164,-584.88,0.00052054,120]
[321000748,1711737055174,-3548.4,0.00052054,120]
[321000749,1711737055183,-500.0,0.00052054,120]
[321000750,1711737055193,-500.0,0.00052054,120]
[321000751,1711737055202,-939.57,0.00052054,120]
[321000752,1711737055211,-500.0,0.00052054,120]
[321000753,1711737055221,-500.0,0.00052054,120]
[321000754,1711737055230,-500.0,0.00052054,120]
[321000755,1711737055240,-500.0,0.00052054,120]
[321000756,1711737055249,-500.0,0.00052054,120]
[321000757,1711737055258,-500.0,0.00052054,120]
[321000758,1711737055267,-500.0,0.00052054,120]
[321000759,1711737055277,-3116.837022,0.00052054,120]
[321000760,1711737055288,-3116.837022,0.00052054,120]
[321000761,1711737055298,-506.00035359,0.00052054,120]
[321000762,1711737055307,-151.0,0.00052054,120]
[321000763,1711737055317,-359.84839,0.00052095,120]
[321000764,1711737055326,-359.84839,0.00052095,120]
[321000765,1711737055335,-151.0,0.00052095,120]
[321000766,1711737055345,-151.0,0.00052095,120]
[321000767,1711737055354,-174.3975,0.00052095,30]
[321000768,1711737055364,-174.3975,0.00052095,30]
[321000769,1711737055373,-153.30888088,0.00052105,60]
[321000770,1711737055383,-1241.49482,0.00052161,12]
[321000771,1711737055393,-152.13137971,0.00052179,60]
[321000772,1711737055402,-150.0,0.000522,11]
[321000773,1711737055411,-168.31111111,0.00052219,120]
[321000774,1711737055421,-25464.69,0.000523,30]
[321000775,1711737055430,-160.71,0.000523,14]
[321000776,1711737055439,-369.689172,0.000523,120]
[321000777,1711737055449,-369.689172,0.000523,120]
[321000778,1711737055458,-515.266587,0.000523,120]
[321000779,1711737055467,-317.01984,0.000523,120]
[321000780,1711737055476,-515.266587,0.000523,120]
[321000781,1711737055485,-317.01984,0.000523,120]
[321000782,1711737055495,-220.711669,0.000523,120]
[321000783,1711737055505,-220.711669,0.000523,120]
[321000784,1711737055514,-688.19817,0.000523,60]
[321000785,1711737055524,-688.19817,0.000523,60]
[321000786,1711737055532,-151.0,0.000523,120]
[321000787,1711737055542,-213.511496,0.000523,120]
[321000788,1711737055550,-213.511496,0.000523,120]
[321000789,1711737055560,-156.927235,0.000523,45]
[321000790,1711737055570,-156.927235,0.000523,45]
[321000791,1711737055579,-151.0,0.000523,120]
[321000792,1711737055589,-151.0,0.000523,120]
[321000793,1711737055598,-480.598738,0.000523,120]
[321000794,1711737055607,-151.0,0.000523,120]
[321000795,1711737055617,-480.598738,0.000523,120]
[321000796,1711737055626,-151.0,0.000523,120]
[321000797,1711737055635,-159.322604,0.000523,120]
[321000798,1711737055644,-151.0,0.000523,120]
[321000799,1711737055653,-151.0,0.000523,120]
[321000800,1711737055662,-202.12055948,0.00052326,4]
[321000801,1711737055671,-207.50831046,0.00052326,4]
[321000802,1711737055680,-200.0,0.00052327,2]
[321000803,1711737055689,-500.0,0.00052328,120]
[321000804,1711737055698,-500.0,0.00052328,120]
[321000805,1711737055708,-615.07496182,0.00052328,120]
[321000806,1711737055717,-500.0,0.00052328,120]
[321000807,1711737055726,-9612.08877521,0.00052328,2]
[321000808,1711737055735,-500.0,0.00052328,120]
[321000809,1711737055745,-379.63,0.00052328,120]
[321000810,1711737055754,-500.0,0.00052328,120]
[321000811,1711737055764,-500.0,0.00052328,120]
[321000812,1711737055773,-500.0,0.00052328,120]
[321000813,1711737055783,-500.0,0.00052328,120]
[321000814,1711737055792,-230.85,0.00052328,120]
[321000815,1711737055801,-500.0,0.00052328,120]
[321000816,1711737055811,-500.0,0.00052328,120]
[321000817,1711737055820,-500.0,0.00052328,120]
[321000818,1711737055830,-500.0,0.00052328,120]
[321000819,1711737055839,-500.0,0.00052328,120]
[321000820,1711737055848,-500.0,0.00052328,120]
[321000821,1711737055857,-500.0,0.00052328,120]